bitfinex-derivatives/quotes_SOLF0:USTF0_20250415
["timestamp","ask_amount","ask_price","bid_price","bid_amount"]
[1744696355764,28.14,131.42,131.31,14.99268714]
[1744696355963,7.6121,131.4,131.34,7.37268714]
[1744696356166,28.14,131.42,131.36,7.6137]
[1744696356464,28.14,131.42,131.35,28.14]
[1744696356769,0.04868361,131.4,131.38,7.6124]
[1744696356959,41.75638714,131.45,131.38,35.51268714]
[1744696357269,0.05335121,131.43,131.41,7.6107]
[1744696357564,0.05335121,131.43,131.41,7.66814612]
[1744696358965,0.05335121,131.43,131.42,7.6105]
[1744696359367,0.05335121,131.43,131.41,7.66834612]
[1744696361167,0.05335121,131.43,131.41,0.05744612]
[1744696361767,7.6105,131.42,131.41,0.05744612]
[1744696361967,0.05335121,131.43,131.41,0.05744612]
[1744696362963,7.66355121,131.43,131.41,0.05744612]
[1744696365668,7.6105,131.42,131.41,0.05744612]
[1744696366471,0.05335121,131.43,131.41,0.05744612]
[1744696368277,0.05335121,131.43,131.41,7.66814612]
[1744696369670,0.05335121,131.43,131.42,7.6105]
[1744696373879,0.05335121,131.43,131.41,35.78834612]
[1744696374181,0.05335121,131.43,131.41,28.17744612]
[1744696374579,0.05335121,131.43,131.42,7.6105]
[1744696377875,7.6076,131.47,131.44,7.609]
[1744696378978,7.66413001,131.47,131.44,7.65943746]
[1744696380686,7.6082,131.46,131.44,0.05043746]
[1744696380879,7.42921715,131.47,131.44,0.05043746]
[1744696381179,7.6088,131.45,131.44,0.05043746]
[1744696384187,7.6085,131.46,131.44,0.05043746]
[1744696384588,7.42921715,131.47,131.44,0.05043746]
[1744696384882,7.6082,131.46,131.44,0.05043746]
[1744696385089,0.05653001,131.47,131.44,0.05043746]
[1744696385476,7.66453001,131.47,131.44,7.65953746]
[1744696385784,0.05653001,131.47,131.44,0.05043746]
[1744696386789,7.42921715,131.47,131.44,0.05043746]
[1744696386988,7.6088,131.45,131.44,0.05043746]
[1744696388386,7.6105,131.42,131.38,32.1856]
[1744696388990,7.6105,131.42,131.39,7.612]
[1744696389189,37.54308714,131.45,131.38,32.1856]
[1744696389489,0.05207653,131.43,131.4,0.05835417]
[1744696389690,7.6111,131.41,131.4,0.05835417]
[1744696391093,7.6129,131.38,131.35,28.1]
[1744696391483,7.6129,131.38,131.35,35.7143]
[1744696391890,7.6138,131.37,131.35,28.1]
[1744696392190,7.66555703,131.37,131.35,0.04055394]
[1744696392996,7.614,131.36,131.35,0.04055394]
[1744696393294,0.05175703,131.37,131.35,0.04055394]
[1744696396689,7.66555703,131.37,131.35,0.04055394]
[1744696397094,0.05175703,131.37,131.35,0.04055394]
[1744696397491,0.05175703,131.37,131.35,7.65475394]
[1744696398397,0.05175703,131.37,131.35,0.04055394]
[1744696399196,7.66535703,131.37,131.35,0.04055394]
[1744696401297,0.05175703,131.37,131.36,7.614]
[1744696402201,28.1,131.43,131.39,7.6122]
[1744696402995,28.1,131.43,131.4,7.6116]
[1744696403201,4.72137464,131.42,131.4,7.66747747]
[1744696403402,4.72137464,131.42,131.4,0.05587747]
[1744696403699,12.33197464,131.42,131.4,0.05587747]
[1744696404595,7.6111,131.41,131.4,0.05587747]
[1744696404899,12.33247464,131.41,131.4,0.05587747]
[1744696405101,7.6111,131.41,131.4,0.05587747]
[1744696407699,7.6109,131.42,131.4,0.05587747]
[1744696408401,35.76328415,131.43,131.4,0.05587747]
[1744696408612,0.05318415,131.43,131.4,0.05587747]
[1744696408813,0.05318415,131.43,131.41,7.6109]
[1744696409310,0.05318415,131.43,131.4,0.05587747]
[1744696410311,0.05318415,131.43,131.42,7.6105]
[1744696411409,0.05318415,131.43,131.41,35.7108]
[1744696411612,0.05318415,131.43,131.41,28.1]
[1744696412116,0.05318415,131.43,131.4,0.05587747]
[1744696413318,7.66338415,131.43,131.4,7.66727747]
[1744696416318,0.05318415,131.43,131.42,7.6105]
[1744696417719,9.6213,131.48,131.45,7.6085]
[1744696418216,39.8765,131.49,131.42,7.37858881]
[1744696418409,39.8765,131.49,131.42,9.35128881]
[1744696418719,0.05712709,131.47,131.44,0.05342249]
[1744696418918,0.05712709,131.47,131.45,7.6088]
[1744696421220,7.66472709,131.47,131.44,35.76252249]
[1744696421522,0.05712709,131.47,131.44,28.15342249]
[1744696422222,7.66502709,131.47,131.44,35.76272249]
[1744696423026,7.6083,131.46,131.44,28.15342249]
[1744696423422,7.6083,131.46,131.44,0.05342249]
[1744696423622,7.66502709,131.47,131.44,0.05342249]
[1744696424725,7.66502709,131.47,131.44,7.66252249]
[1744696424926,7.6082,131.46,131.44,7.66252249]
[1744696425422,7.6082,131.46,131.44,0.05342249]
[1744696425617,0.05712709,131.47,131.44,0.05342249]
[1744696425922,7.37858881,131.46,131.44,0.05342249]
[1744696426626,7.6088,131.45,131.44,0.05342249]
[1744696430127,28.1,131.46,131.44,7.66252249]
[1744696430427,7.66502709,131.47,131.44,0.05342249]
[1744696430627,0.05712709,131.47,131.44,0.05342249]
[1744696431218,0.05712709,131.47,131.45,7.6083]
[1744696432028,0.05712709,131.47,131.46,7.6082]
[1744696435824,7.605,131.52,131.49,7.6062]
[1744696436925,7.66068036,131.52,131.49,7.65915593]
[1744696438931,7.66068036,131.52,131.5,7.6059]
[1744696439230,0.05568036,131.52,131.5,7.6059]
[1744696439525,0.05568036,131.52,131.49,7.65915593]
[1744696439731,7.66068036,131.52,131.49,7.65915593]
[1744696440327,7.6054,131.51,131.49,0.05295593]
[1744696440527,0.05568036,131.52,131.49,0.05295593]
[1744696440829,7.66068036,131.52,131.49,7.65905593]
[1744696441631,0.05568036,131.52,131.5,7.6058]
[1744696442119,0.05568036,131.52,131.49,0.05295593]
[1744696442425,7.66068036,131.52,131.49,7.65915593]
[1744696443332,0.05568036,131.52,131.49,0.05295593]
[1744696443531,7.43426917,131.52,131.49,0.05295593]
[1744696444033,7.6059,131.5,131.49,0.05295593]
[1744696448832,7.6059,131.5,131.46,7.6081]
[1744696448833,7.6072,131.48,131.46,7.6081]
[1744696449033,7.37858881,131.5,131.44,28.08]
[1744696449333,4.71772608,131.48,131.44,28.08]
[1744696449531,4.71772608,131.47,131.44,28.08]
[1744696449935,4.76677363,131.47,131.44,28.12903353]
[1744696450236,7.6082,131.46,131.44,35.73833353]
[1744696452239,7.6088,131.45,131.44,28.12903353]
[1744696452435,7.6088,131.45,131.44,0.04903353]
[1744696452740,4.71772608,131.46,131.44,0.04903353]
[1744696454039,12.32622608,131.46,131.44,0.04903353]
[1744696454940,0.04904755,131.47,131.44,0.04903353]
[1744696455141,0.04904755,131.47,131.44,4.76675961]
[1744696455441,0.04904755,131.47,131.45,4.71772608]
[1744696456342,0.04904755,131.47,131.46,7.6082]
[1744696459551,0.04904755,131.47,131.45,7.6085]
[1744696460142,4.71772608,131.46,131.44,0.04903353]
[1744696460442,4.71772608,131.45,131.44,0.04903353]
[1744696460944,12.32652608,131.45,131.44,0.04903353]
[1744696465351,40.37772608,131.45,131.3,36.80514093]
[1744696465553,4.71772608,131.37,131.32,4.71772608]
[1744696465747,7.6146,131.35,131.32,4.71772608]
[1744696466048,4.71772608,131.35,131.31,4.293]
[1744696466241,4.71772608,131.33,131.3,28.06]
[1744696466449,4.71772608,131.33,131.32,0.04986898]
[1744696466645,0.05392168,131.34,131.3,4.71772608]
[1744696466952,7.6161,131.33,131.31,0.049587]
[1744696467550,0.05392168,131.34,131.31,28.129587]
[1744696467744,0.05392168,131.34,131.31,35.51637685]
[1744696467943,9.49108985,131.4,131.34,7.6151]
[1744696468153,7.6132,131.38,131.34,35.6951]
[1744696468750,4.1318,131.42,131.35,7.38678985]
[1744696468958,2.1714,131.45,131.39,7.38678985]
[1744696469149,7.6096,131.44,131.4,7.6113]
[1744696469345,2.0912,131.48,131.41,7.38678985]
[1744696469551,2.0912,131.48,131.42,28.08]
[1744696470051,7.38678985,131.49,131.42,28.08]
[1744696470253,7.66007137,131.47,131.44,7.6592695]
[1744696470457,0.05247137,131.47,131.44,0.0501695]
[1744696471555,7.43926122,131.47,131.44,0.0501695]
[1744696471752,7.6088,131.45,131.44,0.0501695]
[1744696471953,7.43926122,131.47,131.37,7.38678985]
[1744696472149,7.38678985,131.47,131.38,28.08]
[1744696472355,7.6103,131.43,131.39,7.6122]
[1744696473154,7.66390631,131.42,131.4,0.04859138]
[1744696473348,39.88156908,131.47,131.4,0.04859138]
[1744696473657,7.6104,131.43,131.4,0.04859138]
[1744696474656,7.6106,131.42,131.4,0.04859138]
[1744696475155,7.66657554,131.42,131.4,0.04859138]
[1744696478563,0.05597554,131.42,131.4,0.04859138]
[1744696479667,7.66647554,131.42,131.4,0.04859138]
[1744696481062,7.6111,131.41,131.4,0.04859138]
[1744696484063,7.66677554,131.42,131.4,0.04859138]
[1744696484265,0.05597554,131.42,131.4,0.04859138]
[1744696484866,0.05597554,131.42,131.4,7.66019138]
[1744696485963,0.05597554,131.42,131.4,0.04859138]
[1744696486565,0.05597554,131.42,131.41,7.6111]
[1744696486863,0.05597554,131.42,131.41,35.6911]
[1744696488163,0.05597554,131.42,131.41,28.08]
[1744696488358,7.66647554,131.42,131.41,28.08]
[1744696488566,0.05597554,131.42,131.4,0.04859138]
[1744696489067,7.6111,131.41,131.4,0.04859138]
[1744696492569,7.66677554,131.42,131.4,0.04859138]
[1744696492868,0.05597554,131.42,131.4,0.04859138]
[1744696493766,7.6111,131.41,131.4,0.04859138]
[1744696495470,0.05597554,131.42,131.4,0.04859138]
[1744696496367,0.05597554,131.42,131.41,35.6711]
[1744696497271,0.05597554,131.42,131.41,28.06]
[1744696497672,7.66647554,131.42,131.41,28.06]
[1744696498174,0.05597554,131.42,131.41,28.06]
[1744696500980,7.66647554,131.42,131.41,28.06]
[1744696504077,0.05597554,131.42,131.41,28.06]
[1744696504876,0.05597554,131.42,131.41,35.6711]
[1744696505083,392.43703912,131.5,131.41,28.06]
[1744696505382,35.43703912,131.5,131.42,7.37703912]
[1744696505583,7.6086,131.46,131.43,7.6096]
[1744696505778,7.37703912,131.48,131.41,30.1483]
[1744696505986,7.6105,131.42,131.41,28.06]
[1744696506181,7.6105,131.42,131.38,28.06]
[1744696506382,0.05652807,131.41,131.39,0.05482785]
[1744696506585,0.05652807,131.41,131.39,7.66682785]
[1744696506878,0.05652807,131.41,131.39,0.05482785]
[1744696508183,0.05652807,131.41,131.4,7.6117]
[1744696508884,2.0594,131.45,131.42,7.6103]
[1744696509086,2.0608,131.46,131.42,7.6103]
[1744696509384,7.6092,131.45,131.42,7.6103]
[1744696509978,7.6092,131.45,131.42,7.65868171]
[1744696510285,7.6094,131.44,131.42,7.65868171]
[1744696510478,0.05105944,131.45,131.42,0.04838171]
[1744696511186,7.6099,131.43,131.42,0.04838171]
[1744696522085,0.05105944,131.45,131.42,0.04838171]
[1744696522789,7.66025944,131.45,131.42,12.37894225]
[1744696522991,7.66025944,131.45,131.42,4.76874225]
[1744696523190,7.66025944,131.45,131.42,12.37894225]
[1744696524190,0.05105944,131.45,131.42,32.82874225]
[1744696524891,0.05105944,131.45,131.43,7.6096]
[1744696525088,0.05105944,131.45,131.43,4.72036054]
[1744696525686,0.05105944,131.45,131.44,4.72036054]
[1744696526188,0.05105944,131.45,131.44,12.32976054]
[1744696532298,0.05105944,131.45,131.44,7.6094]
[1744696532496,0.05105944,131.45,131.42,32.82874225]
[1744696533299,7.65985944,131.45,131.42,35.71858171]
[1744696533996,12.33026054,131.43,131.42,0.04838171]
[1744696534202,4.72036054,131.43,131.36,28.06]
[1744696534402,4.72036054,131.39,131.36,28.06]
[1744696534705,4.72036054,131.38,131.36,28.06]
[1744696534898,4.72036054,131.37,131.36,28.06]
[1744696535300,4.72036054,131.37,131.35,0.05370541]
[1744696535500,12.33406054,131.37,131.35,0.05370541]
[1744696536401,7.614,131.36,131.35,0.05370541]
[1744696538004,7.6137,131.37,131.35,0.05370541]
[1744696540706,7.66609925,131.38,131.35,0.05370541]
[1744696540904,7.66609925,131.38,131.35,7.66820541]
[1744696541206,7.66609925,131.38,131.35,0.05370541]
[1744696542607,7.6135,131.37,131.35,0.05370541]
[1744696544411,7.614,131.36,131.35,0.05370541]
[1744696545711,7.6137,131.37,131.35,0.05370541]
[1744696546313,7.614,131.36,131.35,0.05370541]
[1744696546812,0.05299925,131.38,131.35,0.05370541]
[1744696547014,7.6136,131.37,131.35,0.05370541]
[1744696553620,7.66609925,131.38,131.35,7.66800541]
[1744696554320,7.6134,131.37,131.35,0.05370541]
[1744696555816,7.66609925,131.38,131.35,7.66820541]
[1744696557823,7.6134,131.37,131.35,7.66820541]
[1744696558023,0.05299925,131.38,131.35,7.66820541]
[1744696558523,7.66609925,131.38,131.35,7.66820541]
[1744696559323,0.05299925,131.38,131.36,4.72409422]
[1744696559625,0.05299925,131.38,131.36,32.78409422]
[1744696559821,0.05299925,131.38,131.37,7.6134]
[1744696560225,0.05299925,131.38,131.36,32.78409422]
[1744696560524,4.72409422,131.37,131.35,0.05370541]
[1744696561226,12.33799422,131.37,131.35,0.05370541]
[1744696564835,12.39019347,131.38,131.35,7.66820541]
[1744696565133,7.66609925,131.38,131.35,7.66820541]
[1744696566435,7.66609925,131.38,131.35,12.39229963]
[1744696567839,7.66609925,131.38,131.35,7.66820541]
[1744696568939,7.6134,131.37,131.35,7.66820541]
[1744696569134,7.6134,131.37,131.35,0.05370541]
[1744696569940,7.614,131.36,131.35,0.05370541]
[1744696571541,12.33779422,131.37,131.35,0.05370541]
[1744696572736,7.66609925,131.38,131.35,7.66810541]
[1744696573040,0.05299925,131.38,131.35,0.05370541]
[1744696573442,7.6137,131.37,131.35,0.05370541]
[1744696575141,7.614,131.36,131.35,0.05370541]
[1744696576643,4.72409422,131.37,131.3,32.78409422]
[1744696576840,4.72409422,131.34,131.3,32.78409422]
[1744696577242,4.72409422,131.36,131.3,32.78409422]
[1744696577549,7.6146,131.35,131.3,32.78409422]
[1744696577748,0.05698984,131.34,131.32,0.05040189]
[1744696578347,4.78108406,131.34,131.32,0.05040189]
[1744696578649,12.39658406,131.34,131.32,0.05040189]
[1744696579850,7.67248984,131.34,131.32,7.66670189]
[1744696580754,0.05698984,131.34,131.32,7.66670189]
[1744696581145,0.05698984,131.34,131.33,7.6157]
[1744696582357,0.05698984,131.34,131.32,12.39049611]
[1744696583858,0.05698984,131.34,131.33,7.6157]
[1744696584451,0.05698984,131.34,131.33,35.6757]
[1744696584655,7.6143,131.36,131.33,35.6757]
[1744696584656,4.72409422,131.4,131.36,7.6138]
[1744696584855,4.72409422,131.4,131.34,4.72409422]
[1744696585261,4.72409422,131.39,131.34,4.72409422]
[1744696585460,4.72409422,131.38,131.34,4.72409422]
[1744696585760,0.05245326,131.37,131.35,0.05334084]
[1744696585959,7.66625326,131.37,131.35,0.05334084]
[1744696586661,7.66625326,131.37,131.35,7.66794084]
[1744696586960,0.05245326,131.37,131.35,7.66794084]
[1744696589460,7.66605326,131.37,131.35,0.05334084]
[1744696590959,0.05245326,131.37,131.35,7.66794084]
[1744696591560,7.66585326,131.37,131.35,0.05334084]
[1744696592662,7.614,131.36,131.35,0.05334084]
[1744696592863,4.72409422,131.36,131.3,28.06]
[1744696593062,4.72409422,131.34,131.3,28.06]
[1744696593361,12.33979422,131.34,131.31,7.6169]
[1744696593963,12.39086698,131.34,131.31,7.67223157]
[1744696595163,7.66677276,131.34,131.31,7.67223157]
[1744696596461,0.05107276,131.34,131.32,7.6163]
[1744696597056,0.05107276,131.34,131.33,7.6157]
[1744696602866,0.05107276,131.34,131.32,28.06]
[1744696603566,7.66637276,131.34,131.32,28.06]
[1744696604468,7.66637276,131.34,131.32,35.6763]
[1744696604767,0.05107276,131.34,131.32,35.6763]
[1744696605967,7.66627276,131.34,131.32,28.06]
[1744696606467,0.05107276,131.34,131.32,28.06]
[1744696608069,0.05107276,131.34,131.32,35.676]
[1744696608870,0.05107276,131.34,131.32,28.06]
[1744696609568,7.66667276,131.34,131.32,28.06]
[1744696610868,7.6157,131.33,131.32,28.06]
[1744696611971,7.66647276,131.34,131.32,28.06]
[1744696612166,0.05107276,131.34,131.31,0.05533157]
[1744696612372,4.72409422,131.32,131.31,0.05533157]
[1744696613271,12.34039422,131.32,131.31,0.05533157]
[1744696615168,12.34009422,131.33,131.31,0.05533157]
[1744696615373,4.72409422,131.33,131.31,0.05533157]
[1744696615573,12.34019422,131.33,131.31,0.05533157]
[1744696617676,7.6163,131.32,131.31,0.05533157]
[1744696617877,4.72409422,131.33,131.31,0.05533157]
[1744696618279,7.6161,131.33,131.31,0.05533157]
[1744696618578,0.05107276,131.34,131.32,4.72409422]
[1744696620078,0.05107276,131.34,131.32,12.34009422]
[1744696620476,0.05107276,131.34,131.32,7.616]
[1744696620677,12.33979422,131.33,131.31,0.05533157]
[1744696620873,4.72409422,131.33,131.31,0.05533157]
[1744696621877,12.34039422,131.32,131.31,0.05533157]
[1744696624082,7.6163,131.32,131.31,0.05533157]
[1744696624280,12.34039422,131.32,131.31,0.05533157]
[1744696624588,40.40039422,131.32,131.31,0.05533157]
[1744696624881,32.78409422,131.32,131.25,30.1399]
[1744696625081,4.72409422,131.29,131.25,37.7599]
[1744696625282,7.6192,131.27,131.25,30.1399]
[1744696625484,7.6192,131.27,131.25,28.06]
[1744696625777,0.04995706,131.27,131.25,28.10839306]
[1744696626183,0.04995706,131.27,131.25,0.04839306]
[1744696626883,7.66965706,131.27,131.25,0.04839306]
[1744696628083,7.6198,131.26,131.25,0.04839306]
[1744696633989,12.34389422,131.26,131.25,0.04839306]
[1744696634188,4.72409422,131.26,131.22,28.06]
[1744696634490,4.72409422,131.25,131.2,7.6229]
[1744696634690,4.72409422,131.24,131.2,7.6229]
[1744696634989,4.72409422,131.23,131.19,40.40759422]
[1744696635192,0.05701841,131.22,131.2,0.04892527]
[1744696635582,7.6227,131.21,131.2,0.04892527]
[1744696635784,0.05701841,131.22,131.2,0.04892527]
[1744696637192,7.6227,131.21,131.2,0.04892527]
[1744696638500,12.40351263,131.22,131.2,0.04892527]
[1744696638701,0.05701841,131.22,131.2,0.04892527]
[1744696639302,0.05701841,131.22,131.2,7.67212527]
[1744696639495,0.05701841,131.22,131.2,0.04892527]
[1744696640305,7.67941841,131.22,131.2,0.04892527]
[1744696641100,7.6227,131.21,131.2,0.04892527]
[1744696642306,12.34679422,131.21,131.2,0.04892527]
[1744696643305,4.72409422,131.2,131.15,12.34979422]
[1744696643707,7.6244,131.19,131.15,12.34979422]
[1744696643908,4.72409422,131.2,131.15,12.34979422]
[1744696644307,0.05478123,131.19,131.16,7.64641575]
[1744696644905,7.67908123,131.19,131.16,7.64641575]
[1744696645307,7.67908123,131.19,131.16,0.02081575]
[1744696646308,7.625,131.17,131.16,0.02081575]
[1744696646508,4.72409422,131.18,131.16,0.02081575]
[1744696646909,12.34899422,131.18,131.16,0.02081575]
[1744696647506,4.72409422,131.18,131.16,0.02081575]
[1744696647707,12.34889422,131.18,131.16,0.02081575]
[1744696650307,40.46277545,131.19,131.16,7.64621575]
[1744696650507,35.73868123,131.19,131.16,0.02081575]
[1744696651805,28.11478123,131.19,131.16,7.64611575]
[1744696652108,0.05478123,131.19,131.16,7.64611575]
[1744696652310,0.05478123,131.19,131.16,0.02081575]
[1744696652610,0.05478123,131.19,131.17,4.72409422]
[1744696652908,0.05478123,131.19,131.18,7.6244]
[1744696654206,0.05478123,131.19,131.18,12.34849422]
[1744696654411,4.77887545,131.19,131.16,28.08081575]
[1744696654710,4.72409422,131.18,131.16,28.08081575]
[1744696655014,4.72409422,131.18,131.16,0.02081575]
[1744696655210,7.625,131.17,131.16,0.02081575]
[1744696655410,12.34909422,131.17,131.16,0.02081575]
[1744696656407,4.72409422,131.17,131.16,0.02081575]
[1744696656710,4.72409422,131.18,131.16,0.02081575]
[1744696658917,12.34859422,131.18,131.16,0.02081575]
[1744696659914,4.72409422,131.18,131.16,7.64631575]
[1744696660111,4.72409422,131.18,131.16,0.02081575]
[1744696661713,12.34859422,131.18,131.16,0.02081575]
[1744696667214,4.72409422,131.18,131.16,7.64631575]
[1744696667413,12.40297545,131.19,131.16,7.64631575]
[1744696669915,4.77887545,131.19,131.17,7.6247]
[1744696670119,4.72409422,131.23,131.18,4.72409422]
[1744696671219,0.04967808,131.22,131.2,7.6233]
[1744696671620,4.72409422,131.21,131.19,0.05715183]
[1744696671823,4.72409422,131.2,131.19,0.05715183]
[1744696672321,12.34699422,131.21,131.19,0.05715183]
[1744696675325,7.6233,131.2,131.19,0.05715183]
[1744696677126,12.34709422,131.21,131.19,0.05715183]
[1744696679524,7.67207808,131.22,131.19,7.68095183]
[1744696679923,12.3961723,131.22,131.19,7.68095183]
[1744696680430,7.6228,131.21,131.19,7.68095183]
[1744696680728,4.7737723,131.22,131.19,7.68095183]
[1744696680927,12.3961723,131.22,131.19,7.68095183]
[1744696681229,4.72409422,131.2,131.19,0.05715183]
[1744696681528,12.34739422,131.2,131.19,0.05715183]
[1744696682728,7.6233,131.2,131.19,0.05715183]
[1744696682922,4.72409422,131.21,131.19,0.05715183]
[1744696685127,7.6233,131.2,131.19,0.05715183]
[1744696692629,12.34709422,131.21,131.19,0.05715183]
[1744696692924,0.04967808,131.22,131.19,0.05715183]
[1744696693529,7.67187808,131.22,131.2,7.6232]
[1744696693832,7.67187808,131.22,131.19,0.05715183]
[1744696694330,7.67187808,131.22,131.19,7.68075183]
[1744696694931,7.6227,131.21,131.19,0.05715183]
[1744696698127,7.6227,131.21,131.19,7.68095183]
[1744696699233,7.67207808,131.22,131.19,7.68095183]
[1744696700129,7.67207808,131.22,131.2,7.6232]
[1744696700728,0.04967808,131.22,131.2,7.6232]
[1744696702435,0.04967808,131.22,131.19,0.05715183]
[1744696702831,4.7737723,131.22,131.19,0.05715183]
[1744696703133,4.72409422,131.2,131.19,0.05715183]
[1744696703535,12.34739422,131.2,131.19,0.05715183]
[1744696707738,7.6233,131.2,131.19,0.05715183]
[1744696732962,4.72409422,131.21,131.13,28.04]
[1744696733164,4.72409422,131.17,131.12,1.9922]
[1744696733366,4.72409422,131.16,131.12,1.9922]
[1744696733665,7.6259,131.16,131.12,14.34389422]
[1744696734065,0.05742445,131.15,131.12,14.34389422]
[1744696734667,7.68382445,131.15,131.12,14.34389422]
[1744696734863,7.68382445,131.15,131.12,9.6198]
[1744696736169,0.05742445,131.15,131.12,1.9922]
[1744696737169,7.68372445,131.15,131.12,1.9922]
[1744696739272,7.68372445,131.15,131.12,9.6201]
[1744696741271,12.40781867,131.15,131.12,7.6279]
[1744696741874,12.40781867,131.15,131.11,9.6548]
[1744696742471,7.6269,131.14,131.11,9.6548]
[1744696743074,12.40801867,131.15,131.11,9.6548]
[1744696743273,12.40801867,131.15,131.12,7.6279]
[1744696744878,7.6272,131.14,131.1,34.90069422]
[1744696745178,4.72409422,131.12,131.1,28.04]
[1744696745572,0.05186107,131.12,131.1,28.04]
[1744696747282,0.05186107,131.12,131.11,7.6285]
[1744696748583,0.05186107,131.12,131.1,35.6688]
[1744696749683,0.05186107,131.12,131.11,7.6285]
[1744696757191,4.72409422,131.15,131.13,7.6273]
[1744696758388,4.77527273,131.15,131.13,0.05553614]
[1744696758886,12.40187273,131.15,131.13,0.05553614]
[1744696759084,4.72409422,131.14,131.13,0.05553614]
[1744696759592,12.35089422,131.14,131.13,0.05553614]
[1744696760491,7.6268,131.14,131.13,0.05553614]
[1744696760691,12.40177273,131.15,131.13,0.05553614]
[1744696765293,0.05117851,131.15,131.13,7.68253614]
[1744696766602,0.05117851,131.15,131.14,7.6268]
[1744696767091,0.05117851,131.15,131.13,7.68253614]
[1744696767601,0.05117851,131.15,131.14,7.6268]
[1744696769895,35.6447,131.18,131.15,7.6256]
[1744696769896,7.6247,131.18,131.15,7.6256]
[1744696770100,2.0018,131.23,131.15,4.72409422]
[1744696770402,12.34739422,131.2,131.16,28.0]
[1744696770599,12.34739422,131.2,131.17,7.6246]
[1744696771002,0.05776339,131.2,131.17,0.05608544]
[1744696771200,0.05776339,131.2,131.18,7.6242]
[1744696772102,4.78185761,131.2,131.17,7.68078544]
[1744696772302,12.40525761,131.2,131.17,7.68078544]
[1744696774203,4.78185761,131.2,131.18,7.6243]
[1744696774392,0.05776339,131.2,131.18,7.6243]
[1744696778911,4.72409422,131.23,131.19,28.0]
[1744696779112,7.6211,131.24,131.19,32.72409422]
[1744696779307,4.72409422,131.24,131.21,7.6223]
[1744696780011,4.77643531,131.24,131.21,7.67178977]
[1744696780516,0.05234109,131.24,131.21,7.67178977]
[1744696780717,0.05234109,131.24,131.22,7.622]
[1744696781014,0.05234109,131.24,131.21,0.04948977]
[1744696782217,0.05234109,131.24,131.22,7.6221]
[1744696782822,0.05234109,131.24,131.21,7.67188977]
[1744696783321,12.39773531,131.24,131.21,0.04948977]
[1744696784113,7.67364109,131.24,131.21,0.04948977]
[1744696784617,0.05234109,131.24,131.21,7.67188977]
[1744696784816,0.05234109,131.24,131.21,12.39598399]
[1744696785414,7.67334109,131.24,131.21,12.39598399]
[1744696785615,0.05234109,131.24,131.21,12.39598399]
[1744696786719,7.67344109,131.24,131.21,0.04948977]
[1744696786908,12.39753531,131.24,131.21,0.04948977]
[1744696788219,12.39753531,131.24,131.21,7.67198977]
[1744696788821,0.05234109,131.24,131.21,7.67198977]
[1744696791123,0.05234109,131.24,131.22,7.6221]
[1744696791518,0.05234109,131.24,131.22,28.0]
[1744696791720,0.05234109,131.24,131.23,7.6215]
[1744696796224,0.05234109,131.24,131.22,35.622]
[1744696798522,0.05234109,131.24,131.22,28.0]
[1744696798726,4.77643531,131.24,131.22,28.0]
[1744696799226,12.39743531,131.24,131.22,28.0]
[1744696800122,4.77643531,131.24,131.22,28.0]
[1744696800723,0.05234109,131.24,131.22,28.0]
[1744696800925,7.67334109,131.24,131.22,28.0]
[1744696801130,4.72409422,131.23,131.21,0.04948977]
[1744696801325,12.34619422,131.22,131.21,0.04948977]
[1744696803428,6.74039422,131.23,131.21,0.04948977]
[1744696803729,4.72409422,131.23,131.21,0.04948977]
[1744696804329,4.72409422,131.22,131.21,0.04948977]
[1744696804929,7.6221,131.22,131.21,0.04948977]
[1744696805121,12.34619422,131.22,131.21,0.04948977]
[1744696807634,7.6239,131.19,131.18,27.96]
[1744696807830,4.72409422,131.19,131.15,27.98]
[1744696808030,2.0757,131.22,131.15,27.98]
[1744696808031,4.72409422,131.16,131.15,27.98]
[1744696808335,4.72409422,131.16,131.13,7.6273]
[1744696808534,4.72409422,131.15,131.13,7.6273]
[1744696808734,4.72409422,131.15,131.13,7.68353095]
[1744696809931,0.05531474,131.16,131.15,7.6262]
[1744696810137,2.0757,131.22,131.15,32.70409422]
[1744696810337,4.72409422,131.2,131.16,4.72409422]
[1744696810538,12.34769422,131.2,131.16,12.34939422]
[1744696810836,4.72409422,131.19,131.16,7.6253]
[1744696811039,4.72409422,131.18,131.15,27.98]
[1744696811230,4.72409422,131.17,131.15,35.66311501]
[1744696811431,4.72409422,131.17,131.15,28.03721501]
[1744696811631,4.72409422,131.16,131.15,28.03721501]
[1744696812236,4.72409422,131.16,131.15,0.05721501]
[1744696812835,12.34969422,131.16,131.15,0.05721501]
[1744696814244,7.6256,131.16,131.15,0.05721501]